bitfinex/quotes_ETHUSD_20260226
["timestamp","ask_amount","ask_price","bid_price","bid_amount"]
[1772119533469,7.958846,2024.3,2023.2,2.53872675]
[1772119533721,1.23505582,2024.2,2023.2,0.962]
[1772119534009,1.23505582,2024.2,2022.8,1.57672675]
[1772119534206,1.23505582,2024.2,2022.8,2.81263688]
[1772119534373,5.361695,2024.1,2022.8,2.81263563]
[1772119534574,4.579936,2024.1,2022.8,2.81262593]
[1772119534795,1.23505582,2024.2,2022.8,2.81262593]
[1772119535187,5.8954,2024.1,2022.8,2.81262593]
[1772119535801,1.23499481,2024.3,2022.8,1.23590295]
[1772119536000,2.45499481,2024.3,2022.9,1.57672675]
[1772119537114,32.02837921,2024.2,2022.4,1.57672675]
[1772119537311,15.717395,2024.1,2022.4,2.81283521]
[1772119537707,1.54357668,2023.6,2022.0,2.57757959]
[1772119537896,13.102628,2023.4,2022.0,1.61657959]
[1772119538094,7.75328,2023.4,2022.0,1.61657959]
[1772119538308,7.445425,2023.3,2021.8,1.61657959]
[1772119538619,6.671175,2023.2,2021.8,1.61657959]
[1772119538810,5.810175,2023.2,2021.8,1.61657959]
[1772119539235,3.12742848,2022.7,2021.5,0.0011]
[1772119539514,1.5838518,2022.3,2021.5,0.0011]
[1772119539678,17.317256,2022.0,2021.5,0.0011]
[1772119539880,2.126089,2022.0,2021.5,0.0011]
[1772119540097,1.22,2021.9,2021.5,0.0011]
[1772119540312,1.22,2021.9,2021.4,0.0011]
[1772119540517,1.22,2021.9,2020.0,2.74848724]
[1772119540518,1.5838518,2021.4,2020.0,2.74848724]
[1772119540687,3.44071,2021.0,2020.0,2.74848724]
[1772119540884,3.44071,2021.0,2019.1,0.74427016]
[1772119540885,1.5838518,2020.8,2019.1,1.9824404]
[1772119541118,1.5838518,2021.1,2019.2,1.54357668]
[1772119541283,1.5838518,2021.1,2019.3,1.61657959]
[1772119541482,2.221435,2020.9,2019.5,1.61657959]
[1772119541899,1.22,2021.0,2019.7,1.61657959]
[1772119542412,1.22,2021.5,2019.9,1.61657959]
[1772119542614,1.22,2021.5,2020.1,1.54357668]
[1772119542820,8.234513,2021.4,2020.1,1.61657959]
[1772119543130,2.49,2021.4,2020.1,1.61657959]
[1772119543584,3.029364,2021.4,2020.1,1.61657959]
[1772119544291,1.22,2021.0,2019.7,1.23777889]
[1772119544583,1.22,2021.0,2019.5,4.95123038]
[1772119544584,1.5838518,2021.1,2019.5,2.8544761]
[1772119544794,5.717029,2021.2,2019.7,1.61657959]
[1772119544991,5.036,2021.2,2019.7,1.61657959]
[1772119545196,2.45682778,2021.3,2019.7,1.61657959]
[1772119545417,2.45682778,2021.3,2020.0,1.61657959]
[1772119545994,1.22,2021.3,2020.0,1.61657959]
[1772119546198,2.45685289,2021.3,2020.3,1.23743998]
[1772119546397,1.54357668,2022.0,2020.3,1.23743998]
[1772119546398,1.23674496,2021.5,2020.3,1.23743998]
[1772119546599,4.94665617,2021.6,2020.3,1.61657959]
[1772119546600,5.570576,2021.6,2020.3,1.61657959]
[1772119546832,5.570576,2021.6,2020.2,1.23749906]
[1772119547195,4.94635195,2021.7,2020.3,1.61657959]
[1772119547396,2.4565637,2021.8,2020.3,1.61657959]
[1772119547597,4.9454235,2022.1,2020.5,1.61657959]
[1772119547797,4.9454235,2022.1,2020.2,1.23749906]
[1772119547798,5.081092,2022.1,2020.7,3.16015627]
[1772119548026,5.081092,2022.1,2020.7,1.61657959]
[1772119548226,1.2363996,2022.0,2020.7,2.85371922]
[1772119549001,2.45632515,2022.2,2020.9,1.61657959]
[1772119549224,1.22,2022.2,2021.1,1.61657959]
[1772119549408,2.45628145,2022.2,2021.1,1.61657959]
[1772119549613,2.45628145,2022.2,2020.8,0.958]
[1772119549814,6.2892,2022.1,2020.8,0.958]
[1772119550002,2.392,2022.1,2020.8,0.958]
[1772119550203,1.2363996,2022.0,2020.8,0.958]
[1772119550621,1.54357668,2021.7,2020.2,1.23745432]
[1772119550836,1.48357393,2022.7,2020.3,1.61657959]
[1772119551024,15.81069281,2024.0,2020.3,1.61657959]
[1772119551025,1.5838518,2026.2,2024.3,0.44757959]
[1772119551337,3.40295416,2026.6,2024.5,1.60398737]
[1772119551638,11.3155958,2026.5,2024.8,1.54357668]
[1772119551849,17.35799,2026.4,2024.8,1.54357668]
[1772119552140,17.35799,2026.4,2024.5,1.60398737]
[1772119552427,17.35799,2026.4,2024.1,2.47653112]
[1772119552428,1.5838518,2025.9,2024.1,2.47653112]
[1772119552643,25.051969,2025.5,2023.8,2.21925325]
[1772119552848,15.013057,2025.4,2023.8,2.21925325]
[1772119553162,27.537382,2025.2,2023.6,1.23542163]
[1772119553336,1.54357668,2024.8,2023.2,0.984]
[1772119553534,24.14473,2024.6,2023.2,2.21966372]
[1772119553741,19.548728,2024.7,2023.2,3.76322823]
[1772119554045,7.961296,2024.6,2023.2,3.76322823]
[1772119554248,4.95594,2024.5,2023.2,3.76322823]
[1772119554458,1.254,2025.4,2023.8,1.54357668]
[1772119554754,1.253,2025.9,2024.5,1.54357668]
[1772119555041,1.253,2025.9,2024.2,3.80248081]
[1772119555042,11.104183,2025.8,2024.2,3.80248081]
[1772119555225,7.04187,2025.8,2024.2,3.80248081]
[1772119555540,1.23387854,2026.2,2024.2,5.34605749]
[1772119555750,3.99429,2026.0,2024.2,5.34605749]
[1772119556123,3.99429,2026.0,2024.5,1.54357668]
[1772119556318,1.251,2025.9,2024.2,5.34605749]
[1772119556530,1.5838518,2026.3,2024.3,1.23499481]
[1772119556723,2.78144,2026.1,2024.7,1.54357668]
[1772119556918,2.274,2026.1,2024.7,1.54357668]
[1772119557229,1.25,2026.0,2024.7,1.54357668]
[1772119557541,1.249,2026.4,2025.0,1.54357668]
[1772119557710,2.78129,2026.3,2025.0,1.54357668]
[1772119558111,1.249,2026.4,2025.0,1.54357668]
[1772119558328,1.23358112,2026.7,2025.0,1.54357668]
[1772119558537,1.248,2026.6,2025.1,1.23450693]
[1772119558709,4.93293327,2027.2,2025.3,1.54357668]
[1772119558911,2.875418,2027.0,2025.4,0.977]
[1772119560156,1.247,2027.1,2025.4,0.977]
[1772119560157,9.644437,2026.8,2025.4,0.977]
[1772119560314,2.869261,2026.8,2025.4,0.977]
[1772119560507,2.367629,2026.9,2025.5,2.77783982]
[1772119560709,0.001,2028.6,2026.8,6.17430672]
[1772119560908,14.47584254,2029.6,2026.8,6.17430672]
[1772119560909,0.25808879,2029.6,2028.1,1.54357668]
[1772119561222,2.00133546,2030.1,2028.4,1.54357668]
[1772119561424,2.00133546,2029.8,2028.1,2.24019329]
[1772119561721,2.00133546,2029.2,2027.3,1.54357668]
[1772119561919,2.00133546,2028.8,2027.3,2.52057668]
[1772119562140,6.99333546,2028.7,2027.2,0.977]
[1772119562312,2.00133546,2028.5,2027.0,1.54357668]
[1772119562513,2.00133546,2028.5,2027.0,2.77688831]
[1772119562817,4.48043872,2029.1,2027.3,1.54357668]
[1772119563018,2.00133546,2029.1,2027.6,1.54357668]
[1772119563242,1.246,2029.2,2027.6,2.51957668]
[1772119563443,2.00133546,2029.4,2027.0,9.43633005]
[1772119563444,3.23324398,2029.4,2027.9,1.54357668]
[1772119563650,3.23324398,2029.4,2027.0,9.43633005]
[1772119563651,15.46065846,2029.1,2028.0,0.976]
[1772119563949,2.00133546,2029.1,2028.0,0.976]
[1772119564241,2.00133546,2029.1,2027.9,1.54357668]
[1772119564441,2.00133546,2029.1,2027.1,2.46679446]
[1772119564442,1.23231626,2028.7,2027.1,4.93303921]
[1772119564646,2.00133546,2029.3,2028.1,1.54357668]
[1772119564815,2.00133546,2029.3,2028.1,2.51857668]
[1772119565145,2.00133546,2030.3,2028.7,1.54357668]
[1772119565952,1.245,2030.6,2028.3,0.18685624]
[1772119565953,0.001,2030.6,2029.7,1.54357668]
[1772119566248,0.001,2030.6,2029.1,2.51757668]
[1772119566447,2.00233546,2030.6,2029.1,2.77559623]
[1772119566635,0.001,2030.6,2029.4,1.54357668]
[1772119566842,0.1615662,2030.8,2030.3,1.54357668]
[1772119567037,0.1615662,2030.8,2030.0,1.54357668]
[1772119567254,0.001,2031.6,2030.3,1.54357668]
[1772119567724,0.001,2031.6,2030.2,2.24019329]
[1772119567921,2.39560693,2031.6,2030.2,0.5521605]
[1772119568221,2.39560693,2031.6,2030.1,0.972]
[1772119568222,2.39460693,2031.5,2030.1,0.972]
[1772119568419,2.39460693,2031.5,2030.2,1.23140577]
[1772119568925,2.39460693,2031.5,2030.2,3.74598245]
[1772119569121,0.001,2031.6,2030.2,2.20240577]
[1772119569346,0.001,2031.6,2030.3,1.73043292]
[1772119569751,0.001,2031.6,2030.2,2.20240577]
[1772119569922,0.001,2031.6,2030.3,0.18685624]
[1772119570121,0.001,2031.6,2030.4,1.54357668]
[1772119570329,0.001,2031.6,2030.5,0.97]
[1772119570533,0.001,2031.6,2030.5,2.20121125]
[1772119570732,0.001,2031.6,2030.6,0.97]
[1772119571055,0.001,2031.6,2030.5,1.22203093]
[1772119571262,0.001,2031.6,2030.5,2.19203093]
[1772119571659,0.001,2031.6,2030.5,2.19103093]
[1772119571863,0.001,2031.6,2030.5,1.22203093]
[1772119572058,0.001,2031.6,2030.5,2.19103093]
[1772119572258,0.001,2031.6,2030.6,0.969]
[1772119572460,0.001,2031.6,2030.3,4.92489534]
[1772119572461,0.001,2031.6,2030.3,0.969]
[1772119572986,2.00133546,2031.3,2029.9,1.23155871]
[1772119573284,28.486843,2031.2,2029.8,0.968]
[1772119573494,2.00133546,2031.0,2029.5,2.19882541]
[1772119573859,2.00133546,2031.0,2029.3,2.19890684]
[1772119574059,2.00133546,2031.0,2029.5,1.54357668]
[1772119574276,2.00133546,2031.0,2029.3,2.19890684]
[1772119574513,3.23195984,2031.5,2029.8,1.23164843]
[1772119574810,3.23195817,2031.5,2029.8,1.23164843]
[1772119574955,3.23195817,2031.5,2030.0,1.54357668]
[1772119575150,2.00133546,2031.5,2030.0,1.54357668]
[1772119575564,3.23197002,2031.5,2030.1,0.965]
[1772119575763,3.23197002,2031.5,2029.8,1.23164843]
[1772119575764,3.23196213,2031.5,2029.8,1.23164843]
[1772119575975,2.00133546,2031.4,2029.8,1.23164843]
[1772119576178,2.00133546,2030.9,2029.6,0.964]
[1772119576364,2.00133546,2030.9,2029.1,6.47183127]
[1772119576365,2.00133546,2030.7,2029.1,0.964]
[1772119576553,2.00133546,2030.5,2029.1,3.73964749]
[1772119576764,2.00133546,2030.5,2029.2,2.173948]
[1772119576965,2.00133546,2030.5,2029.3,0.964]
[1772119577185,2.00133546,2030.8,2029.1,1.23207081]
[1772119577384,2.00133546,2030.8,2029.4,0.964]
[1772119577776,2.00133546,2030.6,2029.4,0.964]
[1772119578176,3.54491214,2030.6,2028.8,3.66440952]
[1772119578390,2.00133546,2030.4,2029.1,0.962]
[1772119578623,2.00133546,2030.2,2028.7,1.23229399]
[1772119579211,2.00133546,2030.1,2028.7,1.23229399]
[1772119579410,31.23079952,2031.2,2029.7,1.54357668]
[1772119579578,0.001,2031.3,2029.8,0.962]
[1772119579784,1.23079952,2031.2,2029.8,0.962]
[1772119580400,2.00233546,2031.3,2029.9,19.016918]
[1772119580601,3.23307486,2031.3,2030.1,6.098542]
[1772119580811,3.23307486,2031.3,2030.1,6.0325]
[1772119580812,2.00233546,2031.3,2030.1,6.0325]
[1772119581314,0.001,2031.3,2030.1,6.0325]
[1772119581490,0.001,2031.3,2030.1,5.578898]
[1772119581687,1.23174005,2031.3,2030.1,2.035845]
[1772119581929,1.23174005,2031.3,2029.8,5.88850134]
[1772119581930,8.91515846,2031.2,2029.8,0.962]
[1772119582228,2.00133546,2031.2,2029.8,2.19364635]
[1772119582578,3.23216922,2031.2,2029.8,2.19364635]
[1772119583205,2.00133546,2031.0,2029.8,2.19363919]
[1772119583408,2.00133546,2031.0,2029.3,0.18685624]
[1772119583409,2.00133546,2031.0,2029.3,0.964]
[1772119584086,2.00133546,2030.6,2029.1,4.92808141]
[1772119584999,2.00133546,2030.4,2028.6,14.8847178]
[1772119585303,3.22533546,2030.3,2028.7,4.31015]
[1772119585520,2.00133546,2030.2,2028.7,2.38015]
[1772119585679,5.38290546,2030.1,2028.6,2.194377]
[1772119585878,2.00133546,2030.1,2028.6,2.194377]
[1772119586121,3.902397,2030.4,2028.7,12.009318]
[1772119586295,20.37664907,2030.5,2028.9,4.057868]
[1772119586492,18.40920207,2030.4,2028.7,2.892918]
[1772119586682,1.23119609,2030.6,2028.7,2.892918]
[1772119586683,1.92124507,2030.3,2028.7,2.892918]
[1772119586887,1.92124507,2030.3,2029.0,1.23213405]
[1772119587106,3.1525902,2030.3,2029.0,1.23213405]
[1772119588389,4.92532871,2030.4,2029.1,0.54]
[1772119588390,1.92124507,2030.4,2029.1,0.54]
[1772119588599,2.1413659,2030.5,2028.4,4.92995928]
[1772119588600,4.24,2029.1,2028.4,4.92995928]
[1772119588795,2.95900001,2029.0,2028.9,0.0011]
[1772119589014,2.95790001,2028.8,2028.5,2.1954283]
[1772119589212,2.95790001,2028.8,2028.7,0.0011]
[1772119589517,1.92124507,2029.8,2028.7,0.0011]
[1772119589518,0.11019034,2029.0,2028.7,0.0011]
[1772119590518,0.11019034,2029.5,2028.8,26.879734]
[1772119590719,0.11019034,2029.5,2028.7,0.0011]
[1772119590919,0.11019034,2029.8,2028.9,1.23219478]
[1772119591217,3.35811852,2030.3,2028.9,1.23219478]
[1772119591218,2.12674772,2030.3,2028.9,3.37356068]
[1772119591418,2.12674772,2030.3,2029.0,18.536769]
[1772119591624,2.12674772,2030.3,2029.1,0.963]
[1772119591830,2.12574772,2030.2,2029.1,0.963]
[1772119592924,2.12574772,2030.0,2029.1,0.963]
[1772119593218,2.12574772,2030.0,2028.8,0.964]
[1772119593419,1.23146643,2030.1,2028.8,0.964]
[1772119593420,2.12574772,2029.8,2028.8,0.964]
[1772119594854,2.12574772,2030.2,2028.8,0.964]
[1772119595050,2.12574772,2030.0,2028.9,1.23219478]
[1772119595717,2.12574772,2030.0,2028.8,2.19622513]
[1772119596563,2.12574772,2030.0,2028.8,0.964]
[1772119596742,2.12574772,2030.0,2028.8,2.19624627]
[1772119596939,1.23158559,2030.0,2028.8,2.19624627]
[1772119597170,2.12574772,2029.9,2028.8,2.19624627]
[1772119597331,1.23144473,2030.2,2028.8,2.19624627]
[1772119597532,2.16319156,2030.2,2028.8,2.19624627]
[1772119597736,2.16319156,2030.2,2028.9,15.663045]
[1772119597930,3.39460876,2030.2,2028.8,2.19624627]
[1772119598356,3.39460876,2030.2,2028.9,9.670622]
[1772119598560,3.39460876,2030.2,2028.9,3.936811]
[1772119598736,3.39460876,2030.2,2028.8,2.19624627]
[1772119598737,2.16319156,2030.1,2028.8,2.19624627]
[1772119598932,2.16319156,2030.1,2028.8,0.964]
[1772119599139,2.16319156,2029.9,2028.8,0.964]
[1772119599362,2.16319156,2029.9,2028.7,0.0011]
[1772119599566,2.16319156,2029.8,2028.7,0.0011]
[1772119599870,2.16319156,2029.8,2028.7,1.23340369]
[1772119600160,0.001,2030.3,2028.7,1.23340369]
[1772119600161,2.16319156,2030.2,2028.8,11.982789]
[1772119600659,0.001,2030.3,2029.2,23.856753]
[1772119600833,0.001,2030.3,2029.4,3.174364]
[1772119601033,0.001,2030.3,2029.5,1.2318305]
[1772119601787,0.001,2030.0,2029.5,1.2318305]
[1772119601987,4.92355005,2031.1,2029.5,1.2318305]
[1772119601988,0.001,2031.3,2029.6,1.45784885]
[1772119602290,2.16319156,2031.2,2029.7,0.965]
[1772119602884,2.16319156,2031.2,2029.9,11.410848]
[1772119603084,2.16319156,2031.2,2030.0,13.302416]
[1772119603288,2.16319156,2031.2,2030.0,13.100068]
[1772119603476,0.001,2031.3,2030.3,0.18685624]
[1772119603784,0.001,2031.3,2030.5,2.200014]
[1772119605168,0.001,2031.3,2030.6,1.2311632]
[1772119605362,0.001,2031.3,2030.5,4.92465281]
[1772119605363,2.16419156,2031.3,2030.5,0.965]
[1772119606489,0.001,2031.3,2030.5,0.965]
[1772119607309,0.001,2031.6,2030.7,5.237728]
[1772119607490,2.16319156,2032.5,2031.0,2.15260494]
[1772119607661,2.16319156,2033.5,2031.8,25.560188]
[1772119607866,4.91448074,2035.0,2032.9,2.15260494]
[1772119608063,0.001,2034.8,2033.2,2.1413659]
[1772119608286,0.001,2034.8,2033.4,3.756678]
[1772119608494,0.001,2034.7,2033.7,17.2054619]
[1772119608729,1.22812375,2035.7,2033.4,2.14342461]
[1772119609008,1.22812375,2035.7,2033.4,4.28479051]
[1772119609009,2.16319156,2035.3,2033.4,4.28479051]
[1772119609209,3.39155428,2035.3,2033.5,1.22940742]
[1772119609409,2.16319156,2035.2,2033.6,2.963465]
[1772119609586,2.16319156,2035.2,2033.8,6.59506]
[1772119609790,2.16319156,2035.2,2033.6,6.966486]
[1772119609993,7.369262,2035.1,2033.7,0.966]
[1772119610302,2.16319156,2035.7,2034.9,4.365544]
[1772119610610,2.16319156,2035.7,2033.5,1.22940742]
[1772119610611,2.16319156,2035.3,2034.6,3.35088216]
[1772119610911,3.892508,2035.2,2034.4,3.35088216]
[1772119611210,3.892508,2035.2,2034.4,2.84268216]
[1772119611211,2.16319156,2035.1,2034.4,2.84268216]
[1772119611411,10.381021,2034.8,2033.2,4.94207]
[1772119611597,15.07981956,2034.6,2033.8,2.842683]
[1772119611798,3.37819156,2035.1,2034.0,2.842683]
[1772119612116,3.37819156,2035.1,2034.3,2.842683]
[1772119612279,2.16319156,2035.6,2034.8,2.842683]
[1772119612499,2.53703103,2036.6,2035.4,2.842683]
[1772119612802,2.16319156,2036.5,2035.7,2.842683]
[1772119613239,0.001,2036.7,2036.2,0.56394602]
[1772119613532,0.001,2036.7,2035.4,5.87731517]
[1772119613533,1.22848395,2036.7,2036.1,0.56394602]
[1772119613746,1.22848395,2036.7,2035.4,0.965]
[1772119613747,1.22848395,2036.7,2035.9,0.56394602]
[1772119613953,20.31131356,2036.5,2035.4,0.56394602]
[1772119614099,2.8125,2036.4,2035.4,0.56394602]
[1772119614432,2.16319156,2036.5,2035.4,0.56394602]
[1772119614433,2.16319156,2036.5,2035.7,0.07394602]
[1772119614736,2.44448395,2036.7,2035.9,0.06476569]
[1772119614737,0.001,2036.7,2035.9,0.06476569]
[1772119615046,8.43164156,2036.6,2035.6,0.00476569]
[1772119615244,3.3908482,2036.4,2035.4,0.00476569]
[1772119615547,3.3908482,2036.4,2035.0,0.00476569]
[1772119615548,14.412446,2036.1,2035.0,0.00476569]
[1772119615827,8.02637856,2036.1,2035.0,0.00476569]
[1772119616008,9.141842,2036.0,2035.0,0.00476569]
[1772119616207,9.141842,2036.0,2034.2,2.15260494]
[1772119616208,2.15856436,2035.7,2034.6,0.00476569]
[1772119616420,10.130182,2035.5,2034.6,0.00476569]
[1772119616818,2.15856436,2035.5,2034.6,0.00476569]
[1772119617018,2.15856436,2035.5,2033.9,0.965]
[1772119617019,6.87926436,2035.4,2034.4,0.00476569]
[1772119617343,9.298015,2035.2,2033.5,3.32609065]
[1772119617520,22.49334436,2035.1,2033.5,1.22940742]
[1772119617851,12.01728,2034.9,2033.5,1.22940742]
[1772119618140,1.218,2035.0,2033.5,1.22940742]
[1772119618533,19.548886,2034.9,2033.5,1.22940742]
[1772119618724,19.548886,2034.9,2033.1,4.9176297]
[1772119618725,15.528636,2034.9,2033.1,6.385615]
[1772119618934,2.5,2034.7,2033.1,1.2296493]
[1772119619253,1.22868236,2034.7,2033.4,1.22946788]
[1772119619615,1.22868236,2034.7,2033.3,1.22948638]
[1772119619616,13.893777,2034.6,2033.3,1.22948638]
[1772119619945,23.796821,2034.4,2032.9,4.91892906]
[1772119620142,5.317,2034.6,2032.9,7.01561229]
[1772119620304,2.481,2034.6,2033.0,17.81318623]
[1772119620501,17.989504,2034.6,2033.0,3.05968323]
[1772119620704,0.08192,2034.6,2033.0,0.963]
[1772119620935,9.607689,2034.6,2033.0,0.963]
[1772119621113,1.22880314,2034.5,2033.1,1.2296493]
[1772119621315,2.15856436,2034.3,2032.7,1.22984004]
[1772119621529,2.15856436,2033.9,2032.4,2.19306041]
[1772119621807,9.388913,2033.7,2032.4,1.23006041]
[1772119622056,16.196727,2033.6,2032.1,3.88334552]
[1772119622359,2.15856436,2033.1,2031.3,1.23073893]
[1772119622640,2.15856436,2032.7,2030.9,1.23098133]
[1772119622842,21.440399,2033.0,2030.6,1.231134]
[1772119622843,2.24048436,2032.3,2030.6,1.231134]
[1772119623143,2.15856436,2032.2,2030.6,9.542293]
[1772119623436,2.1413659,2033.0,2030.8,14.545313]
[1772119623437,1.23018612,2032.3,2030.8,14.545313]
[1772119623732,2.45013448,2032.3,2030.7,1.23110257]
[1772119623920,4.58648,2032.2,2030.7,1.23110257]
[1772119624322,2.15856436,2032.0,2030.0,4.29214966]
[1772119624635,4.418189,2031.7,2030.1,4.92562309]
[1772119624843,2.15856436,2031.4,2029.5,2.09668323]
[1772119625027,3.35548,2031.3,2029.7,5.305438]
[1772119625216,1.23073893,2031.3,2029.8,1.23164843]
[1772119625609,3.583478,2030.9,2029.5,1.2318305]
[1772119625912,7.19558636,2031.3,2029.6,2.09668323]
[1772119626160,1.23068121,2031.4,2029.8,15.688396]
[1772119626446,1.22,2031.3,2030.8,0.0011]
[1772119626642,2.660901,2031.3,2030.5,0.0011]
[1772119626935,2.53254223,2031.5,2030.5,0.0011]
[1772119627241,1.23073893,2031.3,2030.5,0.0011]
[1772119627467,18.139813,2031.2,2030.5,0.0011]
[1772119627638,12.742113,2031.1,2030.5,0.0011]
[1772119628367,12.281438,2030.9,2030.5,0.0011]
[1772119628565,1.222,2030.8,2030.5,0.0011]
[1772119629169,0.08192,2031.0,2030.5,0.0011]
[1772119629332,6.60982,2030.8,2030.5,0.0011]
[1772119629841,4.436466,2030.8,2030.5,0.0011]
[1772119630033,1.224,2030.9,2030.5,0.0011]
[1772119630235,1.224,2030.9,2029.3,1.2319489]
[1772119630236,2.24048436,2030.8,2029.3,1.2319489]
[1772119630436,15.78898936,2030.7,2029.2,2.19597879]
[1772119630631,14.904557,2030.6,2029.2,2.19597879]
[1772119630855,14.904557,2030.6,2029.0,1.23319602]
[1772119630856,0.08192,2030.5,2029.0,1.23319602]
[1772119631054,14.747621,2030.3,2029.0,1.23319602]
[1772119631266,1.23140577,2030.2,2029.0,0.0011]
[1772119631574,2.2232859,2029.9,2029.0,0.0011]
[1772119631784,1.225,2029.8,2029.0,0.0011]
[1772119632078,1.225,2029.8,2028.8,0.0011]
[1772119632079,19.387261,2029.6,2028.8,0.0011]
[1772119632287,15.715609,2029.6,2028.8,0.0011]
[1772119632641,9.139874,2029.5,2028.8,0.0011]
[1772119632952,1.226,2029.7,2028.8,0.0011]
[1772119633335,1.2317698,2029.6,2028.8,0.0011]
[1772119633680,1.226,2030.0,2028.8,0.0011]
[1772119634362,1.23143372,2030.2,2028.8,0.0011]
[1772119634684,2.24048436,2029.8,2028.8,0.0011]
[1772119634980,2.15856436,2029.7,2028.8,0.0011]
[1772119635186,6.16921,2029.6,2028.8,0.0011]
[1772119635381,3.863109,2029.4,2028.8,0.0011]
[1772119635586,3.863109,2029.4,2028.7,0.0011]
[1772119635889,11.926063,2029.3,2028.7,0.0011]
[1772119636049,11.145563,2029.3,2028.7,0.0011]
[1772119636379,14.362994,2029.2,2028.7,0.0011]
[1772119636576,2.15856436,2029.4,2028.7,0.0011]
[1772119636785,2.06056,2029.2,2028.7,0.0011]
[1772119636999,17.711214,2029.1,2028.4,0.0011]
[1772119637161,1.229,2029.0,2028.4,0.0011]
[1772119637476,2.24048436,2029.2,2028.4,0.0011]
[1772119637685,1.23204676,2029.2,2028.4,0.0011]
[1772119637864,1.229,2029.1,2028.4,0.0011]
[1772119638064,3.38756436,2029.1,2029.0,0.0011]
[1772119638266,5.296742,2028.9,2027.9,0.0011]
[1772119638666,5.296742,2028.9,2028.8,0.0011]
[1772119638667,0.08192,2028.9,2028.8,0.0011]
[1772119638875,1.23204676,2029.2,2028.8,0.0011]
[1772119639066,1.229,2029.0,2028.8,0.0011]
[1772119639273,1.229,2029.0,2028.5,0.0011]
[1772119639588,1.23219478,2028.9,2028.5,0.0011]
[1772119640159,13.290913,2028.8,2028.5,0.0011]
[1772119640371,9.355593,2028.8,2028.5,0.0011]
[1772119640691,0.08192,2028.8,2028.5,0.0011]
[1772119640985,0.08192,2028.8,2027.9,0.0011]
[1772119641589,1.31417969,2028.8,2027.9,0.0011]
[1772119641893,1.31417969,2028.8,2027.6,0.0011]
[1772119641894,0.08192,2028.6,2027.6,0.0011]
[1772119642079,1.233,2028.5,2027.6,0.0011]
[1772119642473,6.32359924,2028.4,2027.6,0.0011]
[1772119642791,6.32359924,2028.4,2026.9,1.23338295]
[1772119642792,2.24048436,2028.3,2026.9,1.23338295]
[1772119642961,2.7279,2028.2,2026.9,1.23338295]
[1772119643163,1.234,2028.1,2027.0,2.09668323]
[1772119643480,1.23244044,2028.5,2027.1,3.32997216]
[1772119643685,1.233,2028.4,2027.2,2.09668323]
[1772119644060,12.119824,2029.4,2027.5,2.09668323]
[1772119644393,0.08192,2029.2,2027.8,2.09668323]
[1772119644591,1.233,2029.1,2027.8,2.09668323]
[1772119645473,2.46512168,2029.1,2027.9,3.32948563]
[1772119645702,1.23189119,2029.4,2028.1,2.09668323]
[1772119645998,1.233,2029.3,2028.1,2.09668323]
[1772119646174,1.233,2029.3,2027.9,3.28189457]
[1772119646688,1.233,2029.3,2028.0,2.04909217]
[1772119647196,1.23158776,2029.9,2028.2,2.04909217]
[1772119647398,1.23170911,2029.7,2028.4,2.04909217]
[1772119647567,1.23170911,2029.7,2028.5,1.23243776]
[1772119648083,2.46270911,2029.7,2028.5,1.23243776]
[1772119648596,1.23170911,2029.7,2028.5,3.28152993]
[1772119649393,1.23170911,2029.7,2028.5,1.23243776]
[1772119649610,3.44330166,2029.7,2028.3,2.19151697]
[1772119649768,1.53409924,2029.6,2028.3,2.19151697]
[1772119650398,1.23170911,2029.7,2028.4,2.04909217]
[1772119650898,1.23170911,2029.7,2028.3,2.19151697]
[1772119651069,6.2585,2029.6,2028.3,2.19151697]
[1772119651268,0.001,2029.1,2028.3,2.19151697]
[1772119652295,0.001,2029.1,2028.1,0.0011]
[1772119652296,13.54025,2029.0,2028.1,0.0011]
[1772119652598,3.714867,2029.0,2028.1,0.0011]
[1772119652807,2.29351255,2028.9,2028.1,0.0011]
[1772119653004,0.08192,2028.7,2027.9,0.0011]
[1772119653295,0.08192,2028.4,2027.9,0.0011]
[1772119653498,6.152,2028.2,2027.9,0.0011]
[1772119653725,1.23268083,2028.1,2027.9,0.0011]
[1772119654198,1.23268083,2028.1,2027.6,0.0011]
[1772119654572,1.229,2028.3,2027.6,0.0011]
[1772119654773,1.23266354,2028.2,2027.6,0.0011]
[1772119655173,1.23,2028.1,2027.6,0.0011]
[1772119655669,1.23274161,2028.0,2027.6,0.0011]
[1772119657420,1.23274161,2028.0,2026.3,1.23377584]
[1772119657421,30.0,2027.7,2026.3,1.23377584]
[1772119657620,1.23310644,2027.4,2026.2,1.23379304]
[1772119658122,3.80798,2027.3,2026.2,1.23379304]
[1772119658423,1.236,2027.2,2026.2,1.23379304]
[1772119659222,1.236,2027.2,2026.1,4.93550993]
[1772119659223,1.236,2027.2,2026.1,1.23385394]
[1772119659428,30.08192,2027.1,2025.8,2.06005974]
[1772119659720,1.23365408,2026.5,2025.5,1.23423339]
[1772119659919,4.93445207,2026.6,2025.6,2.06005974]
[1772119659920,1.237,2026.6,2025.6,2.06005974]
[1772119660117,1.23353234,2026.7,2025.6,2.06005974]
[1772119660291,1.237,2026.5,2025.6,2.06005974]
[1772119660921,1.237,2026.5,2025.5,1.23423339]
[1772119661102,13.11889324,2026.4,2024.8,4.93874357]
[1772119661305,8.262324,2026.2,2024.8,4.93874357]
[1772119661507,1.236,2026.1,2024.8,4.93874357]
[1772119661698,1.23395853,2026.0,2024.8,4.93874357]
[1772119662094,1.61601924,2026.4,2024.9,2.06005974]
[1772119662095,0.08192,2026.4,2024.9,2.06005974]
[1772119662294,4.93364387,2026.9,2025.1,2.06005974]
[1772119662515,4.93364387,2026.9,2025.4,2.06005974]
[1772119662516,2.46947148,2026.8,2025.4,2.06005974]
[1772119662913,1.23345759,2026.9,2025.7,2.06005974]
[1772119663104,1.23339659,2027.0,2025.8,0.957]
[1772119663398,1.23339659,2027.0,2025.9,2.06005974]
[1772119663595,0.08192,2027.4,2025.9,2.06005974]
[1772119663929,4.93266906,2027.4,2026.1,2.06005974]
[1772119664238,0.08192,2027.2,2026.0,1.23395853]
[1772119664615,4.93266906,2027.4,2026.0,1.23395853]
[1772119664803,4.93266906,2027.4,2026.1,2.06005974]